[Event "Titled Tuesday Blitz November 15 Late 2022"]
[White "Sabuk, Piotr"]
[Black "Aggelis, Nikolaos"]
[WhiteFideId "1137565"]
[BlackFideId "4213220"]
[WhiteElo "2326"]
[BlackElo "2189"]
[Result "0-1"]
[Round "11"]
[TimeControl "180+1"]
[Date "2022.11.16"]
[WhiteClock "0:00:02"]
[BlackClock "0:00:08"]

1. d4 {[%clk 0:03:00]}  Nf6 {[%clk 0:02:46]} 2. Bf4 {[%clk 0:02:58]}  g6 {[%clk 0:02:41]} 3. Nc3 {[%clk 0:02:56]}  Bg7 {[%clk 0:02:36]} 4. e4 {[%clk 0:02:55]}  d6 {[%clk 0:02:34]} 5. Qd2 {[%clk 0:02:51]}  O-O {[%clk 0:02:32]} 6. O-O-O {[%clk 0:02:44]}  Nbd7 {[%clk 0:02:30]} 7. Bh6 {[%clk 0:02:41]}  c5 {[%clk 0:02:27]} 8. Bxg7 {[%clk 0:02:35]}  Kxg7 {[%clk 0:02:28]} 9. e5 {[%clk 0:02:35]}  Ne8 {[%clk 0:02:09]} 10. f4 {[%clk 0:02:32]}  cxd4 {[%clk 0:02:04]} 11. Qxd4 {[%clk 0:02:31]}  Qb6 {[%clk 0:02:05]} 12. exd6+ {[%clk 0:02:21]}  Qxd4 {[%clk 0:02:01]} 13. Rxd4 {[%clk 0:02:21]}  Nxd6 {[%clk 0:02:00]} 14. Nf3 {[%clk 0:02:19]}  Nc5 {[%clk 0:01:52]} 15. g3 {[%clk 0:02:15]}  Bf5 {[%clk 0:01:48]} 16. Bg2 {[%clk 0:02:11]}  Rfe8 {[%clk 0:01:42]} 17. Re1 {[%clk 0:02:09]}  Rac8 {[%clk 0:01:38]} 18. Ne5 {[%clk 0:01:55]}  h5 {[%clk 0:01:31]} 19. h3 {[%clk 0:01:53]}  f6 {[%clk 0:01:23]} 20. Nf3 {[%clk 0:01:31]}  b5 {[%clk 0:01:23]} 21. Nh4 {[%clk 0:01:24]}  Bd7 {[%clk 0:01:13]} 22. Nd5 {[%clk 0:01:20]}  Nf5 {[%clk 0:01:07]} 23. Nxf5+ {[%clk 0:01:14]}  Bxf5 {[%clk 0:01:08]} 24. Rxe7+ {[%clk 0:01:09]}  Rxe7 {[%clk 0:01:03]} 25. Nxe7 {[%clk 0:01:10]}  Nb3+ {[%clk 0:00:55]} 26. axb3 {[%clk 0:01:06]}  Rxc2+ {[%clk 0:00:55]} 27. Kb1 {[%clk 0:00:51]}  Rxg2+ {[%clk 0:00:56]} 28. Nxf5+ {[%clk 0:00:51]}  gxf5 {[%clk 0:00:53]} 29. Rd7+ {[%clk 0:00:30]}  Kg6 {[%clk 0:00:53]} 30. Rxa7 {[%clk 0:00:30]}  Rxg3 {[%clk 0:00:47]} 31. Ka2 {[%clk 0:00:29]}  Rxh3 {[%clk 0:00:44]} 32. Rb7 {[%clk 0:00:29]}  Rh4 {[%clk 0:00:35]} 33. Rxb5 {[%clk 0:00:29]}  Rxf4 {[%clk 0:00:34]} 34. Rb8 {[%clk 0:00:30]}  h4 {[%clk 0:00:34]} 35. b4 {[%clk 0:00:27]}  h3 {[%clk 0:00:32]} 36. Rh8 {[%clk 0:00:21]}  Rxb4 {[%clk 0:00:29]} 37. Rxh3 {[%clk 0:00:21]}  f4 {[%clk 0:00:28]} 38. Ka3 {[%clk 0:00:22]}  Re4 {[%clk 0:00:23]} 39. Rh8 {[%clk 0:00:12]}  f3 {[%clk 0:00:22]} 40. Rh1 {[%clk 0:00:08]}  Kf5 {[%clk 0:00:20]} 41. b4 {[%clk 0:00:08]}  Kf4 {[%clk 0:00:18]} 42. b5 {[%clk 0:00:08]}  f2 {[%clk 0:00:17]} 43. b6 {[%clk 0:00:07]}  Re1 {[%clk 0:00:17]} 44. b7 {[%clk 0:00:07]}  Re8 {[%clk 0:00:12]} 45. Kb4 {[%clk 0:00:05]}  Rb8 {[%clk 0:00:11]} 46. Kc3 {[%clk 0:00:05]}  Kf3 {[%clk 0:00:11]} 47. Rh6 {[%clk 0:00:02]}  f5 {[%clk 0:00:08]} 48. Rf6 {[%clk 0:00:02]}  f4 {[%clk 0:00:08]} 49. Kd4 {[%clk 0:00:02]}  f1=Q {[%clk 0:00:08]} 0-1


[Site "https://www.chess.com"]

[Event "Titled Tuesday Blitz November 15 Late 2022"]
[White "Salman, Pavel"]
[Black "Castella Garcia, Fausto"]
[WhiteFideId "24153753"]
[BlackFideId "3501922"]
[WhiteElo "2187"]
[BlackElo "2245"]
[Result "1-0"]
[Round "11"]
[TimeControl "180+1"]
[Date "2022.11.16"]
[WhiteClock "0:00:45"]
[BlackClock "0:00:29"]

1. d4 {[%clk 0:03:00]}  Nf6 {[%clk 0:02:59]} 2. Nc3 {[%clk 0:02:59]}  d5 {[%clk 0:02:59]} 3. Bf4 {[%clk 0:03:00]}  g6 {[%clk 0:02:58]} 4. Nb5 {[%clk 0:03:00]}  Na6 {[%clk 0:02:58]} 5. e3 {[%clk 0:03:00]}  Bg7 {[%clk 0:02:58]} 6. h4 {[%clk 0:03:00]}  h5 {[%clk 0:02:58]} 7. f3 {[%clk 0:02:56]}  c6 {[%clk 0:02:57]} 8. Nc3 {[%clk 0:02:56]}  Nc7 {[%clk 0:02:57]} 9. Bd3 {[%clk 0:02:51]}  b5 {[%clk 0:02:56]} 10. Nh3 {[%clk 0:02:49]}  Bxh3 {[%clk 0:02:55]} 11. Rxh3 {[%clk 0:02:48]}  b4 {[%clk 0:02:52]} 12. Na4 {[%clk 0:02:47]}  Ne6 {[%clk 0:02:52]} 13. Be5 {[%clk 0:02:38]}  Bh6 {[%clk 0:02:46]} 14. Qd2 {[%clk 0:02:26]}  a5 {[%clk 0:02:39]} 15. g4 {[%clk 0:02:19]}  hxg4 {[%clk 0:02:30]} 16. fxg4 {[%clk 0:02:20]}  Bg7 {[%clk 0:02:26]} 17. O-O-O {[%clk 0:02:10]}  Ne4 {[%clk 0:02:14]} 18. Bxe4 {[%clk 0:02:07]}  dxe4 {[%clk 0:02:12]} 19. Bxg7 {[%clk 0:02:03]}  Nxg7 {[%clk 0:02:12]} 20. c4 {[%clk 0:01:53]}  bxc3 {[%clk 0:02:07]} 21. Nxc3 {[%clk 0:01:34]}  f5 {[%clk 0:02:06]} 22. gxf5 {[%clk 0:01:29]}  Nxf5 {[%clk 0:01:53]} 23. Qg2 {[%clk 0:01:28]}  O-O {[%clk 0:01:38]} 24. Qxg6+ {[%clk 0:01:25]}  Ng7 {[%clk 0:01:34]} 25. Rg3 {[%clk 0:01:08]}  Rf7 {[%clk 0:01:34]} 26. h5 {[%clk 0:01:07]}  Rb8 {[%clk 0:00:37]} 27. h6 {[%clk 0:00:55]}  Qb6 {[%clk 0:00:37]} 28. Rg2 {[%clk 0:00:47]}  a4 {[%clk 0:00:29]} 29. h7+ {[%clk 0:00:45]} 1-0


[Site "https://www.chess.com"]

[Event "Titled Tuesday Blitz November 15 Late 2022"]
[White "Sanchez, Robert"]
[Black "Curtis, John"]
[WhiteFideId "2034360"]
[BlackFideId "3200256"]
[WhiteElo "2304"]
[BlackElo "2203"]
[Result "0-1"]
[Round "11"]
[TimeControl "180+1"]
[Date "2022.11.16"]
[WhiteClock "0:00:05"]
[BlackClock "0:00:22"]

1. e4 {[%clk 0:03:00]}  c5 {[%clk 0:02:59]} 2. Nf3 {[%clk 0:03:00]}  d6 {[%clk 0:02:58]} 3. d4 {[%clk 0:03:00]}  cxd4 {[%clk 0:02:59]} 4. Nxd4 {[%clk 0:03:01]}  Nf6 {[%clk 0:02:58]} 5. Nc3 {[%clk 0:03:01]}  a6 {[%clk 0:02:58]} 6. Be3 {[%clk 0:03:01]}  e5 {[%clk 0:02:53]} 7. Nb3 {[%clk 0:03:01]}  Be6 {[%clk 0:02:53]} 8. f3 {[%clk 0:03:02]}  Nbd7 {[%clk 0:02:51]} 9. Qd2 {[%clk 0:03:02]}  b5 {[%clk 0:02:39]} 10. g4 {[%clk 0:03:01]}  b4 {[%clk 0:02:39]} 11. Ne2 {[%clk 0:03:00]}  h6 {[%clk 0:02:31]} 12. Ng3 {[%clk 0:02:42]}  d5 {[%clk 0:02:30]} 13. exd5 {[%clk 0:02:41]}  Nxd5 {[%clk 0:02:28]} 14. Bf2 {[%clk 0:02:39]}  Qg5 {[%clk 0:02:08]} 15. Qxg5 {[%clk 0:02:33]}  hxg5 {[%clk 0:02:08]} 16. Ne4 {[%clk 0:02:34]}  f6 {[%clk 0:02:06]} 17. O-O-O {[%clk 0:02:32]}  Nf4 {[%clk 0:01:59]} 18. Nbc5 {[%clk 0:02:24]}  Nxc5 {[%clk 0:01:58]} 19. Nxc5 {[%clk 0:02:24]}  Bxc5 {[%clk 0:01:56]} 20. Bxc5 {[%clk 0:02:25]}  a5 {[%clk 0:01:55]} 21. Bb5+ {[%clk 0:02:14]}  Kf7 {[%clk 0:01:55]} 22. Be3 {[%clk 0:02:12]}  Ng2 {[%clk 0:01:51]} 23. Bf2 {[%clk 0:02:07]}  a4 {[%clk 0:01:43]} 24. Kb1 {[%clk 0:01:42]}  b3 {[%clk 0:01:42]} 25. cxb3 {[%clk 0:01:38]}  axb3 {[%clk 0:01:42]} 26. a3 {[%clk 0:01:39]}  Rad8 {[%clk 0:01:35]} 27. Rxd8 {[%clk 0:01:09]}  Rxd8 {[%clk 0:01:34]} 28. a4 {[%clk 0:00:56]}  Bd5 {[%clk 0:01:18]} 29. Be2 {[%clk 0:00:45]}  Nf4 {[%clk 0:01:16]} 30. Bd1 {[%clk 0:00:42]}  Ra8 {[%clk 0:01:14]} 31. h4 {[%clk 0:00:37]}  gxh4 {[%clk 0:01:14]} 32. Bxh4 {[%clk 0:00:32]}  Rxa4 {[%clk 0:01:13]} 33. g5 {[%clk 0:00:33]}  e4 {[%clk 0:01:03]} 34. gxf6 {[%clk 0:00:30]}  e3 {[%clk 0:00:42]} 35. Re1 {[%clk 0:00:24]}  e2 {[%clk 0:00:33]} 36. Bxe2 {[%clk 0:00:20]}  Nxe2 {[%clk 0:00:33]} 37. Rxe2 {[%clk 0:00:20]}  Rxh4 {[%clk 0:00:33]} 38. Kc1 {[%clk 0:00:19]}  Bxf3 {[%clk 0:00:32]} 39. Rf2 {[%clk 0:00:18]}  Bd5 {[%clk 0:00:31]} 40. fxg7+ {[%clk 0:00:18]}  Kxg7 {[%clk 0:00:32]} 41. Kd2 {[%clk 0:00:19]}  Rd4+ {[%clk 0:00:30]} 42. Kc3 {[%clk 0:00:19]}  Rc4+ {[%clk 0:00:29]} 43. Kd3 {[%clk 0:00:17]}  Rc2 {[%clk 0:00:27]} 44. Rf5 {[%clk 0:00:10]}  Bf7 {[%clk 0:00:23]} 45. Rb5 {[%clk 0:00:05]}  Rxb2 {[%clk 0:00:22]} 46. Kc3 {[%clk 0:00:05]}  Rh2 {[%clk 0:00:22]} 0-1


[Site "https://www.chess.com"]

[Event "Titled Tuesday Blitz November 15 Late 2022"]
[White "Sarana, Alexey"]
[Black "Mikaelyan, Arman"]
[WhiteFideId "24133795"]
[BlackFideId "13304852"]
[WhiteElo "2708"]
[BlackElo "2456"]
[Result "1-0"]
[Round "11"]
[TimeControl "180+1"]
[Date "2022.11.15"]
[WhiteClock "0:00:09"]
[BlackClock "0:00:48"]

1. c4 {[%clk 0:03:00]}  g6 {[%clk 0:03:00]} 2. d4 {[%clk 0:03:00]}  Bg7 {[%clk 0:03:00]} 3. Nc3 {[%clk 0:03:00]}  d6 {[%clk 0:03:01]} 4. e4 {[%clk 0:03:01]}  c5 {[%clk 0:03:00]} 5. d5 {[%clk 0:03:01]}  e6 {[%clk 0:02:58]} 6. Nf3 {[%clk 0:03:01]}  Ne7 {[%clk 0:02:58]} 7. Bd3 {[%clk 0:02:58]}  O-O {[%clk 0:02:58]} 8. O-O {[%clk 0:02:57]}  exd5 {[%clk 0:02:58]} 9. cxd5 {[%clk 0:02:57]}  Bg4 {[%clk 0:02:58]} 10. h3 {[%clk 0:02:57]}  Bxf3 {[%clk 0:02:59]} 11. Qxf3 {[%clk 0:02:57]}  Nd7 {[%clk 0:02:59]} 12. Qe2 {[%clk 0:02:58]}  a6 {[%clk 0:02:59]} 13. a4 {[%clk 0:02:57]}  Rc8 {[%clk 0:02:54]} 14. f4 {[%clk 0:02:47]}  Re8 {[%clk 0:02:51]} 15. Be3 {[%clk 0:02:32]}  Nf5 {[%clk 0:02:50]} 16. Bf2 {[%clk 0:02:27]}  Nd4 {[%clk 0:02:48]} 17. Qd1 {[%clk 0:02:24]}  c4 {[%clk 0:02:44]} 18. Bc2 {[%clk 0:02:24]}  Nxc2 {[%clk 0:02:41]} 19. Qxc2 {[%clk 0:02:25]}  Nc5 {[%clk 0:02:41]} 20. Bxc5 {[%clk 0:02:19]}  Rxc5 {[%clk 0:02:42]} 21. Rae1 {[%clk 0:02:19]}  b5 {[%clk 0:02:19]} 22. axb5 {[%clk 0:02:18]}  axb5 {[%clk 0:02:20]} 23. Ne2 {[%clk 0:02:11]}  b4 {[%clk 0:02:19]} 24. Kh2 {[%clk 0:02:05]}  b3 {[%clk 0:02:18]} 25. Qd2 {[%clk 0:02:05]}  Rxe4 {[%clk 0:02:16]} 26. Nc3 {[%clk 0:02:02]}  Rxe1 {[%clk 0:02:13]} 27. Rxe1 {[%clk 0:02:01]}  h5 {[%clk 0:02:07]} 28. Re4 {[%clk 0:02:01]}  h4 {[%clk 0:02:02]} 29. Qe2 {[%clk 0:01:23]}  Qf6 {[%clk 0:01:55]} 30. Re8+ {[%clk 0:01:02]}  Kh7 {[%clk 0:01:55]} 31. Qg4 {[%clk 0:01:03]}  Bh6 {[%clk 0:01:47]} 32. Ne4 {[%clk 0:00:09]}  Qxf4+ {[%clk 0:01:37]} 33. g3 {[%clk 0:00:10]}  hxg3+ {[%clk 0:01:19]} 34. Kg2 {[%clk 0:00:10]}  Qxg4 {[%clk 0:01:18]} 35. hxg4 {[%clk 0:00:10]}  f5 {[%clk 0:01:05]} 36. Nxc5 {[%clk 0:00:09]}  dxc5 {[%clk 0:01:02]} 37. d6 {[%clk 0:00:08]}  Bg5 {[%clk 0:00:54]} 38. d7 {[%clk 0:00:08]}  c3 {[%clk 0:00:55]} 39. bxc3 {[%clk 0:00:08]}  b2 {[%clk 0:00:51]} 40. Rb8 {[%clk 0:00:08]}  Kg7 {[%clk 0:00:47]} 41. Rxb2 {[%clk 0:00:08]}  Kf7 {[%clk 0:00:48]} 42. Rb8 {[%clk 0:00:09]} 1-0


[Site "https://www.chess.com"]

[Event "Titled Tuesday Blitz November 15 Late 2022"]
[White "Sattarov, Bobir"]
[Black "Zhigalko, Sergei"]
[WhiteFideId "14203081"]
[BlackFideId "13502956"]
[WhiteElo "2354"]
[BlackElo "2662"]
[Result "0-1"]
[Round "11"]
[TimeControl "180+1"]
[Date "2022.11.15"]
[WhiteClock "0:00:11"]
[BlackClock "0:00:10"]

1. d4 {[%clk 0:02:58]}  Nf6 {[%clk 0:02:59]} 2. Nf3 {[%clk 0:02:59]}  e6 {[%clk 0:03:00]} 3. Bg5 {[%clk 0:02:59]}  h6 {[%clk 0:02:59]} 4. Bh4 {[%clk 0:02:58]}  b6 {[%clk 0:02:58]} 5. Nbd2 {[%clk 0:02:58]}  Bb7 {[%clk 0:02:59]} 6. e3 {[%clk 0:02:57]}  Be7 {[%clk 0:02:59]} 7. Bd3 {[%clk 0:02:56]}  O-O {[%clk 0:02:59]} 8. O-O {[%clk 0:02:55]}  d6 {[%clk 0:03:00]} 9. h3 {[%clk 0:02:49]}  Nh5 {[%clk 0:02:56]} 10. Bxe7 {[%clk 0:02:46]}  Qxe7 {[%clk 0:02:57]} 11. a4 {[%clk 0:02:43]}  a5 {[%clk 0:02:46]} 12. Re1 {[%clk 0:02:37]}  Nd7 {[%clk 0:02:46]} 13. e4 {[%clk 0:02:35]}  Nf4 {[%clk 0:02:41]} 14. Bf1 {[%clk 0:02:35]}  e5 {[%clk 0:02:41]} 15. c3 {[%clk 0:02:33]}  Qf6 {[%clk 0:02:31]} 16. g3 {[%clk 0:02:25]}  Ne6 {[%clk 0:02:31]} 17. d5 {[%clk 0:02:22]}  Ng5 {[%clk 0:02:27]} 18. Nh2 {[%clk 0:02:13]}  Rae8 {[%clk 0:02:23]} 19. h4 {[%clk 0:02:10]}  Nh7 {[%clk 0:02:22]} 20. Ng4 {[%clk 0:02:04]}  Qd8 {[%clk 0:02:22]} 21. Ne3 {[%clk 0:02:00]}  g6 {[%clk 0:02:15]} 22. b4 {[%clk 0:01:55]}  Bc8 {[%clk 0:01:52]} 23. Nec4 {[%clk 0:01:43]}  f5 {[%clk 0:01:49]} 24. exf5 {[%clk 0:01:36]}  gxf5 {[%clk 0:01:47]} 25. bxa5 {[%clk 0:01:19]}  bxa5 {[%clk 0:01:47]} 26. Nxa5 {[%clk 0:01:19]}  Qf6 {[%clk 0:01:47]} 27. Nc6 {[%clk 0:01:18]}  Nc5 {[%clk 0:01:44]} 28. Nb3 {[%clk 0:01:13]}  f4 {[%clk 0:01:42]} 29. Ra2 {[%clk 0:01:11]}  Nxb3 {[%clk 0:01:25]} 30. Qxb3 {[%clk 0:01:12]}  Qg7 {[%clk 0:01:26]} 31. c4 {[%clk 0:01:07]}  Kh8 {[%clk 0:01:23]} 32. a5 {[%clk 0:01:05]}  e4 {[%clk 0:01:09]} 33. Bg2 {[%clk 0:00:28]}  e3 {[%clk 0:01:07]} 34. Qb2 {[%clk 0:00:16]}  Nf6 {[%clk 0:01:05]} 35. fxe3 {[%clk 0:00:14]}  fxe3 {[%clk 0:00:56]} 36. a6 {[%clk 0:00:13]}  Qxg3 {[%clk 0:00:54]} 37. a7 {[%clk 0:00:13]}  Qxe1+ {[%clk 0:00:52]} 38. Kh2 {[%clk 0:00:13]}  Qxh4+ {[%clk 0:00:49]} 39. Kg1 {[%clk 0:00:13]}  Qe1+ {[%clk 0:00:39]} 40. Kh2 {[%clk 0:00:12]}  Bd7 {[%clk 0:00:14]} 41. Ra1 {[%clk 0:00:13]}  Qh4+ {[%clk 0:00:13]} 42. Kg1 {[%clk 0:00:13]}  e2 {[%clk 0:00:10]} 43. Qc3 {[%clk 0:00:11]}  e1=Q+ {[%clk 0:00:10]} 0-1


[Site "https://www.chess.com"]

[Event "Titled Tuesday Blitz November 15 Late 2022"]
[White "Saveliev, Alexei"]
[Black "Melikhov, Evgeny V."]
[WhiteFideId "24128546"]
[BlackFideId "4122046"]
[WhiteElo "2290"]
[BlackElo "2169"]
[Result "1-0"]
[Round "11"]
[TimeControl "180+1"]
[Date "2022.11.16"]
[WhiteClock "0:01:16"]
[BlackClock "0:00:32"]

1. c4 {[%clk 0:03:00]}  e5 {[%clk 0:02:58]} 2. Nc3 {[%clk 0:03:01]}  d6 {[%clk 0:02:58]} 3. Nf3 {[%clk 0:03:01]}  f5 {[%clk 0:02:58]} 4. d4 {[%clk 0:03:01]}  e4 {[%clk 0:02:58]} 5. Ng5 {[%clk 0:03:02]}  Nf6 {[%clk 0:02:57]} 6. h4 {[%clk 0:03:02]}  Be7 {[%clk 0:02:55]} 7. e3 {[%clk 0:03:02]}  O-O {[%clk 0:02:54]} 8. Be2 {[%clk 0:03:03]}  c6 {[%clk 0:02:51]} 9. b3 {[%clk 0:02:59]}  Na6 {[%clk 0:02:47]} 10. Bb2 {[%clk 0:02:58]}  Nc7 {[%clk 0:02:47]} 11. d5 {[%clk 0:02:58]}  c5 {[%clk 0:02:43]} 12. Nh3 {[%clk 0:02:55]}  Bd7 {[%clk 0:02:35]} 13. Nf4 {[%clk 0:02:54]}  a6 {[%clk 0:02:32]} 14. a4 {[%clk 0:02:51]}  b6 {[%clk 0:02:28]} 15. h5 {[%clk 0:02:50]}  Rb8 {[%clk 0:02:26]} 16. Qc2 {[%clk 0:02:34]}  Qe8 {[%clk 0:02:12]} 17. O-O {[%clk 0:02:28]}  g5 {[%clk 0:02:06]} 18. hxg6 {[%clk 0:02:26]}  hxg6 {[%clk 0:02:07]} 19. f3 {[%clk 0:02:25]}  exf3 {[%clk 0:02:05]} 20. Bxf3 {[%clk 0:02:22]}  Kf7 {[%clk 0:01:43]} 21. e4 {[%clk 0:02:13]}  Rh8 {[%clk 0:01:40]} 22. Rae1 {[%clk 0:02:04]}  Qg8 {[%clk 0:01:36]} 23. Qe2 {[%clk 0:01:36]}  g5 {[%clk 0:01:05]} 24. exf5 {[%clk 0:01:31]}  Bd8 {[%clk 0:00:54]} 25. Ng6 {[%clk 0:01:25]}  Bxf5 {[%clk 0:00:39]} 26. Nxh8+ {[%clk 0:01:24]}  Qxh8 {[%clk 0:00:40]} 27. Ne4 {[%clk 0:01:24]}  Qh4 {[%clk 0:00:32]} 28. Nxd6+ {[%clk 0:01:16]} 1-0


[Site "https://www.chess.com"]

[Event "Titled Tuesday Blitz November 15 Late 2022"]
[White "Shimanov, Aleksandr"]
[Black "Maksimovic, Bojan"]
[WhiteFideId "4198603"]
[BlackFideId "14408120"]
[WhiteElo "2605"]
[BlackElo "2447"]
[Result "0-1"]
[Round "11"]
[TimeControl "180+1"]
[Date "2022.11.15"]
[WhiteClock "0:00:08"]
[BlackClock "0:00:07"]

1. e4 {[%clk 0:03:00]}  c5 {[%clk 0:02:58]} 2. Nf3 {[%clk 0:03:00]}  e6 {[%clk 0:02:58]} 3. c4 {[%clk 0:02:57]}  Nc6 {[%clk 0:02:56]} 4. Nc3 {[%clk 0:02:58]}  g5 {[%clk 0:02:50]} 5. h3 {[%clk 0:02:52]}  Bg7 {[%clk 0:02:48]} 6. d3 {[%clk 0:02:52]}  h6 {[%clk 0:02:48]} 7. Be3 {[%clk 0:02:51]}  Nd4 {[%clk 0:02:11]} 8. Qd2 {[%clk 0:02:41]}  d6 {[%clk 0:02:04]} 9. Bxd4 {[%clk 0:02:40]}  cxd4 {[%clk 0:02:04]} 10. Ne2 {[%clk 0:02:41]}  Qb6 {[%clk 0:02:00]} 11. Ng3 {[%clk 0:02:37]}  Nf6 {[%clk 0:01:54]} 12. Be2 {[%clk 0:02:37]}  Bd7 {[%clk 0:01:50]} 13. e5 {[%clk 0:02:15]}  dxe5 {[%clk 0:01:42]} 14. Nxe5 {[%clk 0:02:16]}  Qc7 {[%clk 0:01:36]} 15. Nxd7 {[%clk 0:02:12]}  Nxd7 {[%clk 0:01:37]} 16. Nh5 {[%clk 0:02:12]}  Be5 {[%clk 0:01:34]} 17. g3 {[%clk 0:02:08]}  a5 {[%clk 0:01:32]} 18. a3 {[%clk 0:02:05]}  Nc5 {[%clk 0:01:30]} 19. Rb1 {[%clk 0:02:04]}  a4 {[%clk 0:01:29]} 20. O-O {[%clk 0:02:02]}  Nb3 {[%clk 0:01:26]} 21. Qe1 {[%clk 0:02:00]}  O-O-O {[%clk 0:01:18]} 22. Bd1 {[%clk 0:01:53]}  Nc5 {[%clk 0:01:14]} 23. Bc2 {[%clk 0:01:51]}  Bd6 {[%clk 0:00:59]} 24. Qd1 {[%clk 0:01:50]}  Qc6 {[%clk 0:00:56]} 25. b4 {[%clk 0:01:46]}  axb3 {[%clk 0:00:56]} 26. Bxb3 {[%clk 0:01:46]}  f5 {[%clk 0:00:54]} 27. Bc2 {[%clk 0:01:42]}  Rhe8 {[%clk 0:00:53]} 28. Rb5 {[%clk 0:01:42]}  Re7 {[%clk 0:00:53]} 29. Qd2 {[%clk 0:01:36]}  Rf8 {[%clk 0:00:51]} 30. Rfb1 {[%clk 0:01:34]}  e5 {[%clk 0:00:51]} 31. Rb6 {[%clk 0:01:33]}  Qc7 {[%clk 0:00:52]} 32. Qa5 {[%clk 0:01:33]}  e4 {[%clk 0:00:46]} 33. Ba4 {[%clk 0:00:58]}  Kb8 {[%clk 0:00:36]} 34. Bc6 {[%clk 0:00:52]}  e3 {[%clk 0:00:23]} 35. fxe3 {[%clk 0:00:25]}  dxe3 {[%clk 0:00:24]} 36. d4 {[%clk 0:00:25]}  e2 {[%clk 0:00:23]} 37. Kg2 {[%clk 0:00:12]}  Nd3 {[%clk 0:00:14]} 38. Bxb7 {[%clk 0:00:09]}  Qxb7+ {[%clk 0:00:03]} 39. Rxb7+ {[%clk 0:00:08]}  Rxb7 {[%clk 0:00:03]} 40. Rh1 {[%clk 0:00:03]}  f4 {[%clk 0:00:03]} 41. gxf4 {[%clk 0:00:03]}  gxf4 {[%clk 0:00:04]} 42. Kf3 {[%clk 0:00:03]}  e1=Q {[%clk 0:00:04]} 43. Rxe1 {[%clk 0:00:03]}  Nxe1+ {[%clk 0:00:05]} 44. Ke4 {[%clk 0:00:04]}  Re7+ {[%clk 0:00:05]} 45. Kd5 {[%clk 0:00:04]}  Rf5+ {[%clk 0:00:05]} 46. Kxd6 {[%clk 0:00:05]}  Rxa5 {[%clk 0:00:06]} 47. Kxe7 {[%clk 0:00:05]}  Rxh5 {[%clk 0:00:06]} 48. d5 {[%clk 0:00:06]}  Nd3 {[%clk 0:00:06]} 49. d6 {[%clk 0:00:06]}  Nc5 {[%clk 0:00:06]} 50. d7 {[%clk 0:00:06]}  Nxd7 {[%clk 0:00:07]} 51. Kxd7 {[%clk 0:00:07]}  f3 {[%clk 0:00:08]} 52. c5 {[%clk 0:00:08]}  Rxc5 {[%clk 0:00:07]} 0-1


[Site "https://www.chess.com"]

[Event "Titled Tuesday Blitz November 15 Late 2022"]
[White "Shuvalova, Polina"]
[Black "Gerbelli Neto, Eduardo"]
[WhiteFideId "24171760"]
[BlackFideId "2103281"]
[WhiteElo "2342"]
[BlackElo "2178"]
[Result "1/2-1/2"]
[Round "11"]
[TimeControl "180+1"]
[Date "2022.11.16"]
[WhiteClock "0:01:55"]
[BlackClock "0:00:42"]

1. d4 {[%clk 0:03:00]}  d5 {[%clk 0:02:59]} 2. Nf3 {[%clk 0:03:01]}  c6 {[%clk 0:03:00]} 3. Bf4 {[%clk 0:03:01]}  Nf6 {[%clk 0:03:01]} 4. e3 {[%clk 0:03:01]}  Bf5 {[%clk 0:03:01]} 5. Nbd2 {[%clk 0:03:01]}  e6 {[%clk 0:03:01]} 6. c3 {[%clk 0:03:00]}  Nbd7 {[%clk 0:03:01]} 7. h3 {[%clk 0:03:00]}  Be7 {[%clk 0:03:00]} 8. Be2 {[%clk 0:03:00]}  O-O {[%clk 0:03:00]} 9. O-O {[%clk 0:03:00]}  Ne4 {[%clk 0:03:00]} 10. Nxe4 {[%clk 0:03:00]}  Bxe4 {[%clk 0:03:00]} 11. Nd2 {[%clk 0:03:01]}  Bg6 {[%clk 0:03:00]} 12. Bh2 {[%clk 0:03:00]}  Re8 {[%clk 0:03:01]} 13. c4 {[%clk 0:03:00]}  Bf6 {[%clk 0:02:53]} 14. Rc1 {[%clk 0:02:59]}  dxc4 {[%clk 0:02:44]} 15. Nxc4 {[%clk 0:02:58]}  Nb6 {[%clk 0:02:44]} 16. Nd6 {[%clk 0:02:48]}  Re7 {[%clk 0:02:44]} 17. Bf3 {[%clk 0:02:49]}  Nc8 {[%clk 0:02:30]} 18. Nxb7 {[%clk 0:02:42]}  Rxb7 {[%clk 0:02:28]} 19. Bxc6 {[%clk 0:02:43]}  Rab8 {[%clk 0:02:22]} 20. Bxb7 {[%clk 0:02:43]}  Rxb7 {[%clk 0:02:23]} 21. b3 {[%clk 0:02:44]}  Nb6 {[%clk 0:02:18]} 22. Rc5 {[%clk 0:02:42]}  Nd5 {[%clk 0:02:17]} 23. Qe2 {[%clk 0:02:41]}  Be7 {[%clk 0:02:09]} 24. Rc4 {[%clk 0:02:41]}  h6 {[%clk 0:02:04]} 25. Rfc1 {[%clk 0:02:41]}  Kh7 {[%clk 0:01:59]} 26. Be5 {[%clk 0:02:40]}  f6 {[%clk 0:01:41]} 27. Bg3 {[%clk 0:02:39]}  Qd7 {[%clk 0:01:35]} 28. Rc6 {[%clk 0:02:35]}  Rb6 {[%clk 0:01:07]} 29. Rxb6 {[%clk 0:02:31]}  axb6 {[%clk 0:01:04]} 30. a4 {[%clk 0:02:30]}  Bd6 {[%clk 0:01:02]} 31. Bxd6 {[%clk 0:02:29]}  Qxd6 {[%clk 0:01:03]} 32. Qc4 {[%clk 0:02:29]}  Nb4 {[%clk 0:00:56]} 33. Qc7 {[%clk 0:02:24]}  Qxc7 {[%clk 0:00:52]} 34. Rxc7 {[%clk 0:02:24]}  Be4 {[%clk 0:00:53]} 35. f3 {[%clk 0:02:22]}  Bd5 {[%clk 0:00:53]} 36. Rc3 {[%clk 0:02:19]}  f5 {[%clk 0:00:53]} 37. Kf2 {[%clk 0:02:14]}  Na2 {[%clk 0:00:51]} 38. Rc2 {[%clk 0:02:10]}  Nb4 {[%clk 0:00:51]} 39. Rc3 {[%clk 0:02:08]}  Na2 {[%clk 0:00:49]} 40. Rc2 {[%clk 0:02:00]}  Nb4 {[%clk 0:00:42]} 41. Rc3 {[%clk 0:01:55]} 1/2-1/2


[Site "https://www.chess.com"]